[Event "*** Titled Tuesday Blitz"]
[Site "Chess.com"]
[Date "2019.03.05"]
[Round "4"]
[White "Doraemon7"]
[Black "ChessicallyInclined"]
[Result "1/2-1/2"]
[WhiteElo "2603"]
[BlackElo "2416"]
[TimeControl "180+2"]
[EndTime "13:57:34 PST"]
[Termination "Game drawn by agreement"]

1. d4 {[%clk 0:02:22.1]} 1... d5 {[%clk 0:02:59.8]} 2. c4 {[%clk 0:02:19.6]}
2... e6 {[%clk 0:02:59.7]} 3. Nf3 {[%clk 0:02:19]} 3... Nf6 {[%clk 0:03:01]} 4.
g3 {[%clk 0:02:18.2]} 4... dxc4 {[%clk 0:03:01.8]} 5. Bg2 {[%clk 0:02:15.3]}
5... a6 {[%clk 0:03:03]} 6. O-O {[%clk 0:02:08.5]} 6... Nc6 {[%clk 0:03:04]} 7.
e3 {[%clk 0:02:06.7]} 7... Bd7 {[%clk 0:03:04.9]} 8. Qe2 {[%clk 0:02:01.4]} 8...
Bd6 {[%clk 0:03:03.3]} 9. Qxc4 {[%clk 0:01:46.2]} 9... O-O {[%clk 0:03:03.7]}
10. Rd1 {[%clk 0:01:45.2]} 10... Rb8 {[%clk 0:03:01.4]} 11. Qe2 {[%clk
0:01:43.7]} 11... Qe7 {[%clk 0:02:58.6]} 12. Nbd2 {[%clk 0:01:35.3]} 12... e5
{[%clk 0:02:50.9]} 13. dxe5 {[%clk 0:01:17.3]} 13... Nxe5 {[%clk 0:02:51.4]} 14.
Nxe5 {[%clk 0:01:14.9]} 14... Bxe5 {[%clk 0:02:53.3]} 15. Nc4 {[%clk 0:01:15.7]}
15... Ba4 {[%clk 0:02:53]} 16. Rd2 {[%clk 0:00:44.8]} 16... Rfd8 {[%clk
0:02:45.3]} 17. f4 {[%clk 0:00:33]} 17... Rxd2 {[%clk 0:02:34.7]} 18. Bxd2
{[%clk 0:00:29.5]} 18... Bd4 {[%clk 0:02:30.8]} 19. Re1 {[%clk 0:00:20.6]} 19...
Bc5 {[%clk 0:02:30.9]} 20. Kh1 {[%clk 0:00:20.5]} 20... Ne4 {[%clk 0:02:19.2]}
21. b3 {[%clk 0:00:20.3]} 21... Bc6 {[%clk 0:02:18.8]} 22. Bc1 {[%clk 0:00:17]}
22... f6 {[%clk 0:02:13.1]} 23. Qc2 {[%clk 0:00:16.2]} 23... Rd8 {[%clk
0:02:11.4]} 24. Re2 {[%clk 0:00:10.9]} 24... b6 {[%clk 0:02:05.8]} 25. Nd2
{[%clk 0:00:10.3]} 25... f5 {[%clk 0:01:51.9]} 26. Nxe4 {[%clk 0:00:09.7]} 26...
fxe4 {[%clk 0:01:48]} 27. Rd2 {[%clk 0:00:11.1]} 27... Rxd2 {[%clk 0:01:44.4]}
28. Bxd2 {[%clk 0:00:13]} 28... a5 {[%clk 0:01:43.2]} 29. h3 {[%clk 0:00:13.6]}
29... h6 {[%clk 0:01:42.8]} 30. Kh2 {[%clk 0:00:15.1]} 30... Kh8 {[%clk
0:01:40.9]} 31. Qc4 {[%clk 0:00:15.9]} 31... Qd6 {[%clk 0:01:40]} 32. Bc3 {[%clk
0:00:14.6]} 32... Bd5 {[%clk 0:01:32.1]} 33. Qa6 {[%clk 0:00:14.2]} 33... Bxe3
{[%clk 0:01:27.1]} 34. Qc8+ {[%clk 0:00:15.1]} 34... Kh7 {[%clk 0:01:24.5]} 35.
Qf5+ {[%clk 0:00:16.2]} 35... Kh8 {[%clk 0:01:23.8]} 36. Bxe4 {[%clk 0:00:16.8]}
36... Bxe4 {[%clk 0:01:23.6]} 37. Qxe4 {[%clk 0:00:18.7]} 37... Bc5 {[%clk
0:01:21.9]} 38. Qe8+ {[%clk 0:00:19.2]} 38... Kh7 {[%clk 0:01:21.9]} 39. Qe4+
{[%clk 0:00:20.6]} 39... Kg8 {[%clk 0:01:18.9]} 40. Qe8+ {[%clk 0:00:18.9]}
40... Kh7 {[%clk 0:01:16.6]} 41. Qe4+ {[%clk 0:00:17]} 41... Kg8 {[%clk
0:01:15]} 42. h4 {[%clk 0:00:15.9]} 42... Qd7 {[%clk 0:01:14.7]} 43. Kg2 {[%clk
0:00:14.3]} 43... Qg4 {[%clk 0:01:09.4]} 44. Qe8+ {[%clk 0:00:13.7]} 44... Kh7
{[%clk 0:01:10.2]} 45. Qe4+ {[%clk 0:00:12.5]} 45... Kg8 {[%clk 0:01:11.4]} 46.
Qe8+ {[%clk 0:00:13.5]} 46... Kh7 {[%clk 0:01:11.2]} 47. Qe4+ {[%clk 0:00:15]}
47... Kg8 {[%clk 0:01:12.4]} 48. Qd5+ {[%clk 0:00:15.7]} 48... Kh8 {[%clk
0:01:11.8]} 49. Qd8+ {[%clk 0:00:15.4]} 49... Kh7 {[%clk 0:01:12.4]} 50. Qd3+
{[%clk 0:00:16.7]} 50... Kg8 {[%clk 0:01:13.8]} 51. Qd8+ {[%clk 0:00:17.4]}
51... Kh7 {[%clk 0:01:15.1]} 52. Qd3+ {[%clk 0:00:14.6]} 52... Kg8 {[%clk
0:01:16.1]} 53. Be5 {[%clk 0:00:16.1]} 53... c6 {[%clk 0:01:10.3]} 54. Qd8+
{[%clk 0:00:15.3]} 54... Kh7 {[%clk 0:01:11]} 55. Qd3+ {[%clk 0:00:17.2]} 55...
Kg8 {[%clk 0:01:12.2]} 56. f5 {[%clk 0:00:13.9]} 56... Be7 {[%clk 0:01:00.2]}
57. Kh2 {[%clk 0:00:10]} 57... b5 {[%clk 0:00:56.6]} 58. Bc7 {[%clk 0:00:06.4]}
58... a4 {[%clk 0:00:55.6]} 59. Be5 {[%clk 0:00:06.7]} 59... axb3 {[%clk
0:00:54.4]} 60. axb3 {[%clk 0:00:08.6]} 1/2-1/2

[Event "*** Titled Tuesday Blitz"]
[Site "Chess.com"]
[Date "2019.03.05"]
[Round "4"]
[White "Maili15"]
[Black "Fivetrick"]
[Result "1/2-1/2"]
[WhiteElo "2277"]
[BlackElo "2458"]
[TimeControl "180+2"]
[EndTime "13:57:36 PST"]
[Termination "Game drawn by repetition"]

1. d4 {[%clk 0:03:01.9]} 1... Nf6 {[%clk 0:03:00.4]} 2. c4 {[%clk 0:03:02.8]}
2... g6 {[%clk 0:03:01.3]} 3. Nc3 {[%clk 0:03:04]} 3... Bg7 {[%clk 0:03:02.7]}
4. e4 {[%clk 0:03:05.4]} 4... d6 {[%clk 0:03:03.6]} 5. f4 {[%clk 0:03:06.6]}
5... O-O {[%clk 0:03:04.5]} 6. Nf3 {[%clk 0:03:08]} 6... c5 {[%clk 0:03:05.5]}
7. d5 {[%clk 0:03:09.3]} 7... e6 {[%clk 0:03:05.3]} 8. Be2 {[%clk 0:03:10.4]}
8... exd5 {[%clk 0:03:05.6]} 9. cxd5 {[%clk 0:03:12.3]} 9... a6 {[%clk
0:03:01.6]} 10. O-O {[%clk 0:03:12]} 10... b5 {[%clk 0:03:01.3]} 11. e5 {[%clk
0:03:06.6]} 11... Nfd7 {[%clk 0:02:52.2]} 12. e6 {[%clk 0:02:11.8]} 12... fxe6
{[%clk 0:02:08.5]} 13. Ng5 {[%clk 0:02:05.7]} 13... Nf6 {[%clk 0:02:05.3]} 14.
Nxe6 {[%clk 0:01:51.3]} 14... Bxe6 {[%clk 0:02:05.1]} 15. dxe6 {[%clk
0:01:53.2]} 15... Ra7 {[%clk 0:01:12.2]} 16. Nd5 {[%clk 0:01:08.2]} 16... Nc6
{[%clk 0:00:47.6]} 17. Be3 {[%clk 0:00:51.7]} 17... Nxd5 {[%clk 0:00:45.5]} 18.
Qxd5 {[%clk 0:00:49.4]} 18... Ne7 {[%clk 0:00:46.5]} 19. Qd2 {[%clk 0:00:40.5]}
19... Nf5 {[%clk 0:00:45.2]} 20. Bf2 {[%clk 0:00:38]} 20... Qf6 {[%clk
0:00:24.2]} 21. Bf3 {[%clk 0:00:31.8]} 21... Re7 {[%clk 0:00:19.2]} 22. Rad1
{[%clk 0:00:20.4]} 22... Nd4 {[%clk 0:00:17.3]} 23. Bd5 {[%clk 0:00:19.6]} 23...
Qxf4 {[%clk 0:00:09.2]} 24. Be3 {[%clk 0:00:18.3]} 24... Qe5 {[%clk 0:00:04.5]}
25. Rxf8+ {[%clk 0:00:18.4]} 25... Kxf8 {[%clk 0:00:04.3]} 26. Rf1+ {[%clk
0:00:16.2]} 26... Kg8 {[%clk 0:00:05.3]} 27. Rf7 {[%clk 0:00:15.4]} 27... Rxf7
{[%clk 0:00:04.2]} 28. exf7+ {[%clk 0:00:16.2]} 28... Kf8 {[%clk 0:00:05.3]} 29.
Bf3 {[%clk 0:00:11.9]} 29... Kxf7 {[%clk 0:00:05.8]} 30. Qf2 {[%clk 0:00:11.7]}
30... Nxf3+ {[%clk 0:00:04.7]} 31. Qxf3+ {[%clk 0:00:13.6]} 31... Bf6 {[%clk
0:00:05.3]} 32. Qb7+ {[%clk 0:00:13.8]} 32... Ke6 {[%clk 0:00:05.8]} 33. Bf2
{[%clk 0:00:12.8]} 33... Qxb2 {[%clk 0:00:06.2]} 34. Qc8+ {[%clk 0:00:13.4]}
34... Kd5 {[%clk 0:00:06.1]} 35. Qg8+ {[%clk 0:00:13.6]} 35... Ke5 {[%clk
0:00:06.2]} 36. Bg3+ {[%clk 0:00:13.2]} 36... Kf5 {[%clk 0:00:07]} 37. Qc8+
{[%clk 0:00:13.5]} 37... Kg5 {[%clk 0:00:07.5]} 38. h4+ {[%clk 0:00:12.9]} 38...
Kh5 {[%clk 0:00:07.3]} 39. Kh2 {[%clk 0:00:12.9]} 39... Be5 {[%clk 0:00:07.8]}
40. Kh3 {[%clk 0:00:12]} 40... Bxg3 {[%clk 0:00:08.5]} 41. Qg4+ {[%clk
0:00:12.8]} 41... Kh6 {[%clk 0:00:09.4]} 42. Qg5+ {[%clk 0:00:14.1]} 42... Kg7
{[%clk 0:00:09.9]} 43. Qe7+ {[%clk 0:00:15.7]} 43... Kg8 {[%clk 0:00:07.9]} 44.
Qe8+ {[%clk 0:00:16.7]} 44... Kg7 {[%clk 0:00:08.9]} 45. Qe7+ {[%clk 0:00:17.5]}
45... Kh6 {[%clk 0:00:09.1]} 46. Qg5+ {[%clk 0:00:18.3]} 46... Kg7 {[%clk
0:00:09.7]} 47. Qe7+ {[%clk 0:00:19.2]} 47... Kg8 {[%clk 0:00:10]} 48. Qe8+
{[%clk 0:00:19.4]} 48... Kg7 {[%clk 0:00:10.6]} 49. Qe7+ {[%clk 0:00:20.3]}
49... Kh6 {[%clk 0:00:11.3]} 50. Qg5+ {[%clk 0:00:20.9]} 50... Kg7 {[%clk
0:00:11.8]} 51. Qe7+ {[%clk 0:00:21.9]} 1/2-1/2

[Event "*** Titled Tuesday Blitz"]
[Site "Chess.com"]
[Date "2019.03.05"]
[Round "4"]
[White "Durarbayli"]
[Black "wannabe2700"]
[Result "1-0"]
[WhiteElo "2773"]
[BlackElo "2557"]
[TimeControl "180+2"]
[EndTime "13:57:38 PST"]
[Termination "Durarbayli won by checkmate"]

1. d4 {[%clk 0:03:00.9]} 1... Nf6 {[%clk 0:03:01]} 2. c4 {[%clk 0:03:01.8]} 2...
e6 {[%clk 0:03:02.4]} 3. Nc3 {[%clk 0:03:01.9]} 3... Bb4 {[%clk 0:03:03.3]} 4.
Nf3 {[%clk 0:03:02.3]} 4... O-O {[%clk 0:03:04.3]} 5. Bg5 {[%clk 0:03:02.9]}
5... b6 {[%clk 0:02:57.5]} 6. Qb3 {[%clk 0:03:01.5]} 6... c5 {[%clk 0:02:50.5]}
7. d5 {[%clk 0:03:02.3]} 7... h6 {[%clk 0:02:35.1]} 8. Bh4 {[%clk 0:03:00.4]}
8... g5 {[%clk 0:02:36.3]} 9. Nxg5 {[%clk 0:02:56]} 9... hxg5 {[%clk 0:02:31.9]}
10. Bxg5 {[%clk 0:02:57.9]} 10... d6 {[%clk 0:02:10.1]} 11. O-O-O {[%clk
0:02:46.1]} 11... Nbd7 {[%clk 0:02:04.7]} 12. Nb5 {[%clk 0:02:11.2]} 12... Ne5
{[%clk 0:01:32.5]} 13. f4 {[%clk 0:01:53.7]} 13... Neg4 {[%clk 0:00:57.7]} 14.
dxe6 {[%clk 0:01:01]} 14... Qe7 {[%clk 0:00:46.2]} 15. h3 {[%clk 0:00:37.2]}
15... Nf2 {[%clk 0:00:36.5]} 16. Bxf6 {[%clk 0:00:31.9]} 16... Qxf6 {[%clk
0:00:31.1]} 17. Qg3+ {[%clk 0:00:33.3]} 17... Kh8 {[%clk 0:00:18.8]} 18. Qxf2
{[%clk 0:00:33.2]} 18... Bxe6 {[%clk 0:00:16.7]} 19. e3 {[%clk 0:00:34]} 19...
Rad8 {[%clk 0:00:09.1]} 20. Nc7 {[%clk 0:00:33.3]} 20... b5 {[%clk 0:00:07.6]}
21. Nd5 {[%clk 0:00:34.1]} 21... Qg7 {[%clk 0:00:05.1]} 22. Qh4+ {[%clk
0:00:34.9]} 22... Qh7 {[%clk 0:00:04.6]} 23. Qxh7+ {[%clk 0:00:35.6]} 23... Kxh7
{[%clk 0:00:06.5]} 24. cxb5 {[%clk 0:00:36.1]} 24... c4 {[%clk 0:00:06.5]} 25.
Nxb4 {[%clk 0:00:33.9]} 25... d5 {[%clk 0:00:06.4]} 26. g4 {[%clk 0:00:33.5]}
26... f5 {[%clk 0:00:07.4]} 27. g5 {[%clk 0:00:34.5]} 27... Kg6 {[%clk
0:00:08.5]} 28. Be2 {[%clk 0:00:35.2]} 28... Rh8 {[%clk 0:00:10.4]} 29. h4
{[%clk 0:00:36.7]} 29... Kg7 {[%clk 0:00:10.8]} 30. h5 {[%clk 0:00:38.6]} 30...
Bf7 {[%clk 0:00:12.1]} 31. h6+ {[%clk 0:00:39.3]} 31... Kf8 {[%clk 0:00:13.4]}
32. Nc6 {[%clk 0:00:40.2]} 32... Rd6 {[%clk 0:00:14.3]} 33. Nd4 {[%clk 0:00:38]}
33... Rb6 {[%clk 0:00:14.4]} 34. Nxf5 {[%clk 0:00:38.3]} 34... Rxb5 {[%clk
0:00:15.6]} 35. Nd6 {[%clk 0:00:39.4]} 35... Rb6 {[%clk 0:00:15.2]} 36. Nxf7
{[%clk 0:00:40.9]} 36... Kxf7 {[%clk 0:00:16.8]} 37. Rxd5 {[%clk 0:00:41.7]}
37... Ke6 {[%clk 0:00:18]} 38. Bxc4 {[%clk 0:00:42.1]} 38... Rc8 {[%clk
0:00:18.3]} 39. Rd4+ {[%clk 0:00:43.7]} 39... Kf5 {[%clk 0:00:18.9]} 40. b3
{[%clk 0:00:44.8]} 40... Kg4 {[%clk 0:00:19.8]} 41. h7 {[%clk 0:00:45.9]} 41...
Rh8 {[%clk 0:00:20.6]} 42. g6 {[%clk 0:00:45.7]} 42... Rxg6 {[%clk 0:00:20.9]}
43. Rg1+ {[%clk 0:00:47.3]} 43... Kh5 {[%clk 0:00:20.8]} 44. Rxg6 {[%clk
0:00:49.2]} 44... Kxg6 {[%clk 0:00:22.2]} 45. Bd3+ {[%clk 0:00:50.4]} 45... Kf6
{[%clk 0:00:22.5]} 46. Kd2 {[%clk 0:00:52.3]} 46... a5 {[%clk 0:00:23.3]} 47.
Rd6+ {[%clk 0:00:50.1]} 47... Ke7 {[%clk 0:00:24.1]} 48. Ra6 {[%clk 0:00:51.1]}
48... Kf7 {[%clk 0:00:25.4]} 49. e4 {[%clk 0:00:51.5]} 49... a4 {[%clk
0:00:25.9]} 50. b4 {[%clk 0:00:50.1]} 50... a3 {[%clk 0:00:26.7]} 51. e5 {[%clk
0:00:51.4]} 51... Kg7 {[%clk 0:00:27]} 52. b5 {[%clk 0:00:51.4]} 52... Kf7
{[%clk 0:00:27.4]} 53. f5 {[%clk 0:00:51.3]} 53... Kg7 {[%clk 0:00:26]} 54. f6+
{[%clk 0:00:52]} 54... Kh6 {[%clk 0:00:26.6]} 55. Ke3 {[%clk 0:00:50.2]} 55...
Kg5 {[%clk 0:00:27.3]} 56. Ra7 {[%clk 0:00:49.9]} 56... Kh6 {[%clk 0:00:25.4]}
57. Rg7 {[%clk 0:00:49.5]} 57... Kh5 {[%clk 0:00:24.3]} 58. Kf4 {[%clk
0:00:50.7]} 58... Kh6 {[%clk 0:00:22.2]} 59. Rg1 {[%clk 0:00:51.3]} 59... Rxh7
{[%clk 0:00:18.2]} 60. Rh1# {[%clk 0:00:36]} 1-0

[Event "*** Titled Tuesday Blitz"]
[Site "Chess.com"]
[Date "2019.03.05"]
[Round "4"]
[White "Siemba"]
[Black "MatBobula"]
[Result "0-1"]
[WhiteElo "2104"]
[BlackElo "2284"]
[TimeControl "180+2"]
[EndTime "13:57:42 PST"]
[Termination "MatBobula won by resignation"]

1. e4 {[%clk 0:03:01.9]} 1... e6 {[%clk 0:02:58.8]} 2. d4 {[%clk 0:03:00.7]}
2... d5 {[%clk 0:02:59.2]} 3. Nc3 {[%clk 0:02:59]} 3... Bb4 {[%clk 0:02:59]} 4.
e5 {[%clk 0:02:46.9]} 4... c5 {[%clk 0:02:57]} 5. a3 {[%clk 0:02:40.2]} 5...
Bxc3+ {[%clk 0:02:57.4]} 6. bxc3 {[%clk 0:02:42.1]} 6... Ne7 {[%clk 0:02:58.6]}
7. Qg4 {[%clk 0:02:34.7]} 7... Kf8 {[%clk 0:02:51.3]} 8. Nf3 {[%clk 0:02:32.1]}
8... Qa5 {[%clk 0:02:47.6]} 9. Bd2 {[%clk 0:02:32.3]} 9... Qa4 {[%clk
0:02:48.3]} 10. Bd3 {[%clk 0:02:29.9]} 10... b6 {[%clk 0:02:41]} 11. h4 {[%clk
0:02:28.1]} 11... Ba6 {[%clk 0:02:39.1]} 12. h5 {[%clk 0:02:24.4]} 12... h6
{[%clk 0:02:38]} 13. Rh3 {[%clk 0:02:17.5]} 13... Bxd3 {[%clk 0:02:33.6]} 14.
cxd3 {[%clk 0:02:18.1]} 14... Nbc6 {[%clk 0:02:34.5]} 15. Rg3 {[%clk 0:02:16.2]}
15... Nf5 {[%clk 0:02:27.6]} 16. dxc5 {[%clk 0:02:16.2]} 16... Qxg4 {[%clk
0:01:52.9]} 17. Rxg4 {[%clk 0:02:18.1]} 17... bxc5 {[%clk 0:01:54.3]} 18. Rb1
{[%clk 0:02:01]} 18... Rb8 {[%clk 0:01:45]} 19. Rxb8+ {[%clk 0:01:56.8]} 19...
Nxb8 {[%clk 0:01:45.6]} 20. Ra4 {[%clk 0:01:49.5]} 20... Nc6 {[%clk 0:01:45.8]}
21. Ra6 {[%clk 0:01:37.3]} 21... Nfe7 {[%clk 0:01:44]} 22. d4 {[%clk 0:01:34.3]}
22... c4 {[%clk 0:01:05.6]} 23. a4 {[%clk 0:01:07.6]} 23... Ke8 {[%clk
0:01:03.7]} 24. Bc1 {[%clk 0:01:01]} 24... Kd7 {[%clk 0:01:04]} 25. Ba3 {[%clk
0:01:01.7]} 25... Nc8 {[%clk 0:00:48.2]} 26. Bd6 {[%clk 0:00:49.3]} 26... Nxd6
{[%clk 0:00:37.3]} 27. exd6 {[%clk 0:00:51.2]} 27... f6 {[%clk 0:00:38.4]} 28.
Nh4 {[%clk 0:00:43.6]} 28... Kxd6 {[%clk 0:00:26.3]} 29. Ng6 {[%clk 0:00:43.5]}
29... Rc8 {[%clk 0:00:25.2]} 30. Kd2 {[%clk 0:00:27.3]} 30... Rc7 {[%clk
0:00:20.9]} 31. f4 {[%clk 0:00:22.1]} 31... Rc8 {[%clk 0:00:17.2]} 32. g4 {[%clk
0:00:22.9]} 32... Re8 {[%clk 0:00:17.8]} 33. f5 {[%clk 0:00:18.4]} 33... Kc7
{[%clk 0:00:17.2]} 34. fxe6 {[%clk 0:00:17.1]} 34... Rxe6 {[%clk 0:00:17]} 35.
Nf4 {[%clk 0:00:17]} 35... Rd6 {[%clk 0:00:18.3]} 36. Rxc6+ {[%clk 0:00:05.2]}
36... Kxc6 {[%clk 0:00:18.1]} 37. Kc2 {[%clk 0:00:04.4]} 37... Rd7 {[%clk
0:00:18.2]} 38. Kd2 {[%clk 0:00:03.9]} 38... Re7 {[%clk 0:00:18.6]} 39. Ng6
{[%clk 0:00:02.7]} 39... Re4 {[%clk 0:00:19.5]} 40. Nf8 {[%clk 0:00:03.4]} 40...
Rxg4 {[%clk 0:00:19.4]} 41. Ne6 {[%clk 0:00:04.5]} 41... Kd6 {[%clk 0:00:18.1]}
42. Nc5 {[%clk 0:00:03]} 42... Rg5 {[%clk 0:00:18.5]} 43. Nb7+ {[%clk
0:00:03.6]} 43... Kc7 {[%clk 0:00:18.6]} 44. Nc5 {[%clk 0:00:04.4]} 44... Rxh5
{[%clk 0:00:19.3]} 45. Ne6+ {[%clk 0:00:06]} 45... Kd6 {[%clk 0:00:20.5]} 46.
Nxg7 {[%clk 0:00:07.9]} 46... Rh2+ {[%clk 0:00:21.5]} 47. Ke3 {[%clk 0:00:08.4]}
47... Rc2 {[%clk 0:00:21.5]} 48. Nf5+ {[%clk 0:00:08.8]} 48... Kd7 {[%clk
0:00:21.8]} 49. Nxh6 {[%clk 0:00:09.7]} 49... Rxc3+ {[%clk 0:00:22.9]} 50. Ke2
{[%clk 0:00:11.3]} 50... Ra3 {[%clk 0:00:22.4]} 51. Ng4 {[%clk 0:00:11.8]} 51...
Ke6 {[%clk 0:00:22.9]} 52. Ne3 {[%clk 0:00:11]} 52... Rxa4 {[%clk 0:00:24.1]}
53. Nc2 {[%clk 0:00:08.4]} 53... Ra2 {[%clk 0:00:25.1]} 54. Kd2 {[%clk
0:00:08.8]} 54... Rxc2+ {[%clk 0:00:26.5]} 55. Kxc2 {[%clk 0:00:10.7]} 55... Kf5
{[%clk 0:00:27.5]} 56. Kc3 {[%clk 0:00:11.9]} 56... Ke4 {[%clk 0:00:29]} 0-1

[Event "*** Titled Tuesday Blitz"]
[Site "Chess.com"]
[Date "2019.03.05"]
[Round "4"]
[White "Andrew-FB00"]
[Black "BillForster"]
[Result "1/2-1/2"]
[WhiteElo "1848"]
[BlackElo "1723"]
[TimeControl "180+2"]
[EndTime "13:57:45 PST"]
[Termination "Game drawn by agreement"]

1. e4 {[%clk 0:03:01.8]} 1... c5 {[%clk 0:02:10.2]} 2. Nf3 {[%clk 0:03:01.8]}
2... a6 {[%clk 0:02:09.8]} 3. c3 {[%clk 0:02:57.3]} 3... e6 {[%clk 0:02:08.9]}
4. d4 {[%clk 0:02:56.8]} 4... d5 {[%clk 0:02:09.2]} 5. exd5 {[%clk 0:02:49.8]}
5... Qxd5 {[%clk 0:02:07.4]} 6. Be3 {[%clk 0:02:43.3]} 6... Nf6 {[%clk
0:02:04.2]} 7. Be2 {[%clk 0:02:42.5]} 7... cxd4 {[%clk 0:01:52.7]} 8. Bxd4
{[%clk 0:02:37.8]} 8... Nc6 {[%clk 0:01:51.6]} 9. Bxf6 {[%clk 0:02:36.4]} 9...
Qxd1+ {[%clk 0:01:50.4]} 10. Bxd1 {[%clk 0:02:35.6]} 10... gxf6 {[%clk
0:01:52.3]} 11. O-O {[%clk 0:02:35.1]} 11... Bd7 {[%clk 0:01:49]} 12. Nbd2
{[%clk 0:02:35.5]} 12... O-O-O {[%clk 0:01:48]} 13. Nc4 {[%clk 0:02:31.3]} 13...
Kc7 {[%clk 0:01:41.6]} 14. Bc2 {[%clk 0:02:25.2]} 14... Bc5 {[%clk 0:01:41.6]}
15. Rad1 {[%clk 0:02:22.9]} 15... Bc8 {[%clk 0:01:39.4]} 16. Rfe1 {[%clk
0:01:55.1]} 16... h5 {[%clk 0:01:37]} 17. g3 {[%clk 0:01:52.4]} 17... b5 {[%clk
0:01:28.4]} 18. Ne3 {[%clk 0:01:47.4]} 18... Bb7 {[%clk 0:01:25]} 19. Nd2 {[%clk
0:01:35.2]} 19... Ne5 {[%clk 0:01:20.3]} 20. Kf1 {[%clk 0:01:18.2]} 20... h4
{[%clk 0:01:20]} 21. Be4 {[%clk 0:01:05.8]} 21... Nd3 {[%clk 0:01:07]} 22. Bxd3
{[%clk 0:01:01.1]} 22... Rxd3 {[%clk 0:01:05.8]} 23. Nb3 {[%clk 0:00:56.9]}
23... Rxd1 {[%clk 0:00:59.6]} 24. Nxd1 {[%clk 0:00:48]} 24... hxg3 {[%clk
0:00:44]} 25. hxg3 {[%clk 0:00:43.5]} 25... Rh1+ {[%clk 0:00:37.8]} 26. Ke2
{[%clk 0:00:43.2]} 26... Bf3+ {[%clk 0:00:37]} 27. Kd2 {[%clk 0:00:40.8]} 27...
Bb6 {[%clk 0:00:30.7]} 28. Rxh1 {[%clk 0:00:31.6]} 28... Bxh1 {[%clk 0:00:32.6]}
29. Ne3 {[%clk 0:00:31.7]} 29... Bf3 {[%clk 0:00:27.3]} 30. Kd3 {[%clk 0:00:28]}
30... Kd6 {[%clk 0:00:23]} 31. Nd4 {[%clk 0:00:27.7]} 31... Bxd4 {[%clk
0:00:19.4]} 32. Kxd4 {[%clk 0:00:26.4]} 32... e5+ {[%clk 0:00:12.2]} 33. Kd3
{[%clk 0:00:26.3]} 33... Ke6 {[%clk 0:00:10.7]} 34. b3 {[%clk 0:00:21.4]} 34...
Bb7 {[%clk 0:00:09.6]} 35. c4 {[%clk 0:00:21.9]} 35... Kd6 {[%clk 0:00:08.4]}
36. cxb5 {[%clk 0:00:21.5]} 36... axb5 {[%clk 0:00:09.2]} 37. b4 {[%clk
0:00:22]} 37... Kc6 {[%clk 0:00:09.5]} 38. a3 {[%clk 0:00:22]} 38... Kd6 {[%clk
0:00:09.9]} 39. Nf5+ {[%clk 0:00:22]} 39... Ke6 {[%clk 0:00:10.3]} 40. g4 {[%clk
0:00:22.5]} 40... Bd5 {[%clk 0:00:09.9]} 41. Ne3 {[%clk 0:00:21.3]} 41... Bb7
{[%clk 0:00:09.5]} 42. Ke2 {[%clk 0:00:18.5]} 42... Bc6 {[%clk 0:00:09.6]} 43.
Kd3 {[%clk 0:00:19.2]} 43... Bb7 {[%clk 0:00:09.3]} 44. Nc2 {[%clk 0:00:17.1]}
44... Bc6 {[%clk 0:00:09.1]} 45. Ne3 {[%clk 0:00:17.7]} 45... Bb7 {[%clk
0:00:09.5]} 46. Nc2 {[%clk 0:00:17.8]} 1/2-1/2